bitfinex-derivatives/quotes_BTCF0:USTF0_20250716
["timestamp","ask_amount","ask_price","bid_price","bid_amount"]
[1752689667205,1.22481781,119440.0,119430.0,1.5543]
[1752689667709,0.8714364,119440.0,119430.0,1.5543]
[1752689667908,1.22481781,119440.0,119430.0,1.5543]
[1752689668102,1.22481781,119440.0,119430.0,1.59932618]
[1752689671708,0.8714364,119440.0,119430.0,1.59932618]
[1752689671904,1.22481781,119440.0,119430.0,1.59932618]
[1752689673310,0.8714364,119440.0,119430.0,1.59932618]
[1752689673518,1.22481781,119440.0,119430.0,1.59932618]
[1752689675216,1.22481781,119440.0,119430.0,1.54602618]
[1752689675217,1.74565522,119440.0,119430.0,1.54602618]
[1752689675421,0.1975704,119430.0,119420.0,0.0002]
[1752689675718,0.6975844,119420.0,119410.0,0.1135674]
[1752689676019,1.74117676,119420.0,119410.0,1.6133674]
[1752689676216,1.74117676,119420.0,119410.0,1.5533]
[1752689677521,1.74117676,119420.0,119410.0,1.5543]
[1752689680321,1.45544199,119420.0,119410.0,1.5543]
[1752689680521,1.8088234,119420.0,119410.0,1.5543]
[1752689680916,1.45544199,119420.0,119410.0,1.5543]
[1752689681121,1.8088234,119420.0,119410.0,1.5543]
[1752689681528,1.8088234,119420.0,119410.0,0.08854]
[1752689681718,0.1980984,119410.0,119400.0,0.0475]
[1752689681914,0.59043981,119410.0,119400.0,0.0287]
[1752689682118,0.59043981,119410.0,119400.0,1.5287]
[1752689682427,1.09043981,119410.0,119400.0,1.5287]
[1752689683627,1.09143981,119410.0,119400.0,1.5287]
[1752689683828,1.09143981,119410.0,119400.0,1.55136]
[1752689684226,1.09143981,119410.0,119400.0,0.0287]
[1752689685329,1.09143981,119410.0,119400.0,0.05136]
[1752689686625,1.09143981,119410.0,119400.0,0.08614]
[1752689686833,1.3537284,119410.0,119400.0,0.60693391]
[1752689687133,0.8383184,119410.0,119400.0,0.60693391]
[1752689687322,0.67092,119410.0,119400.0,0.60693391]
[1752689687519,0.67088,119410.0,119400.0,0.60693391]
[1752689688125,0.001,119410.0,119400.0,0.60693391]
[1752689688319,0.001,119410.0,119400.0,0.2535525]
[1752689688320,0.67076,119410.0,119400.0,0.2535525]
[1752689688525,0.66576,119410.0,119400.0,0.60693391]
[1752689689231,0.8331584,119410.0,119400.0,0.60693391]
[1752689690029,0.8331584,119410.0,119400.0,0.2535525]
[1752689690231,0.8331584,119410.0,119400.0,0.2545525]
[1752689690827,1.24944981,119410.0,119400.0,0.08814]
[1752689691033,1.24944981,119410.0,119400.0,0.2555525]
[1752689691837,0.8960684,119410.0,119400.0,0.2555525]
[1752689692032,0.8984084,119410.0,119400.0,0.2555525]
[1752689692335,1.24682981,119410.0,119400.0,0.2555525]
[1752689693032,0.8934484,119410.0,119400.0,0.2555525]
[1752689693231,0.8697784,119410.0,119400.0,0.2555525]
[1752689695339,0.8697784,119410.0,119400.0,0.3156199]
[1752689697634,0.8555984,119410.0,119400.0,0.66900131]
[1752689697834,0.8379384,119410.0,119400.0,0.66900131]
[1752689698429,0.8379384,119410.0,119400.0,0.3156199]
[1752689698834,0.8379384,119410.0,119400.0,0.66900131]
[1752689699136,0.8722184,119410.0,119400.0,0.66900131]
[1752689700436,0.8722184,119410.0,119400.0,0.3156199]
[1752689700830,0.67054,119410.0,119400.0,0.66900131]
[1752689701339,0.67054,119410.0,119400.0,0.3156199]
[1752689701539,0.67054,119410.0,119400.0,0.66900131]
[1752689701743,0.8379384,119410.0,119400.0,0.66900131]
[1752689702238,0.8379384,119410.0,119400.0,0.3156199]
[1752689702841,0.8379384,119410.0,119400.0,0.66900131]
[1752689704144,0.8355984,119410.0,119400.0,0.66900131]
[1752689705045,0.8508484,119410.0,119400.0,0.66900131]
[1752689705738,0.8532584,119410.0,119400.0,0.6102199]
[1752689705946,1.26671981,119410.0,119400.0,0.6102199]
[1752689706140,1.25188981,119410.0,119400.0,0.6102199]
[1752689707045,0.8985084,119410.0,119400.0,0.6102199]
[1752689707646,0.9008484,119410.0,119400.0,0.6102199]
[1752689708948,0.70482,119410.0,119400.0,0.96360131]
[1752689709247,0.8722185,119410.0,119400.0,0.96360131]
[1752689711247,0.8722185,119410.0,119400.0,0.6102199]
[1752689711248,1.22559991,119410.0,119400.0,0.6102199]
[1752689711551,0.8722185,119410.0,119400.0,0.6102199]
[1752689711848,0.8722185,119410.0,119400.0,0.96360131]
[1752689712251,0.8958885,119410.0,119400.0,0.6102199]
[1752689712550,0.9008485,119410.0,119400.0,0.96360131]
[1752689712850,0.9008485,119410.0,119400.0,0.6102199]
[1752689713952,1.28758932,119410.0,119400.0,0.6102199]
[1752689714150,1.28758932,119410.0,119400.0,0.38274]
[1752689714350,1.28758932,119410.0,119400.0,0.5501525]
[1752689715344,0.93184791,119410.0,119400.0,0.5481525]
[1752689715551,0.05514941,119410.0,119400.0,0.90153391]
[1752689715849,0.2438925,119400.0,119390.0,0.0841874]
[1752689716049,1.45301532,119400.0,119390.0,0.06044941]
[1752689716351,1.45301532,119400.0,119390.0,1.56024941]
[1752689716747,1.45301532,119400.0,119390.0,1.54519106]
[1752689717147,1.45301532,119400.0,119390.0,1.54619106]
[1752689718049,0.7462525,119400.0,119390.0,1.6112949]
[1752689718253,1.09963391,119400.0,119390.0,1.6159949]
[1752689718448,1.09963391,119400.0,119390.0,1.57080384]
[1752689718853,1.09963391,119400.0,119390.0,1.56610384]
[1752689719053,1.45301532,119400.0,119390.0,1.51815384]
[1752689719250,1.45301532,119400.0,119390.0,1.501]
[1752689719450,0.7462525,119400.0,119390.0,1.501]
[1752689719646,0.1674265,119390.0,119380.0,0.06241828]
[1752689719854,1.28366007,119390.0,119380.0,0.06221828]
[1752689720054,1.28366007,119390.0,119380.0,0.01702722]
[1752689720256,1.28366007,119390.0,119380.0,1.51702722]
[1752689720456,1.78366007,119390.0,119380.0,1.51702722]
[1752689720755,1.78366007,119390.0,119380.0,0.01902722]
[1752689723558,1.78314007,119390.0,119380.0,0.01902722]
[1752689724254,1.78314007,119390.0,119380.0,0.01702722]
[1752689724450,1.78514007,119390.0,119380.0,0.01702722]
[1752689725955,1.12046007,119390.0,119380.0,0.01702722]
[1752689726158,1.12046007,119390.0,119380.0,0.06967722]
[1752689726362,0.88719866,119390.0,119380.0,0.27158772]
[1752689726856,0.88719866,119390.0,119380.0,0.30165902]
[1752689727762,1.24058007,119390.0,119380.0,0.30165902]
[1752689728057,0.88719866,119390.0,119380.0,0.30165902]
[1752689728356,1.24058007,119390.0,119380.0,0.30165902]
[1752689728758,1.24058007,119390.0,119380.0,0.65504043]
[1752689728759,0.02081216,119390.0,119380.0,0.65504043]
[1752689729063,0.68509216,119390.0,119380.0,0.96476019]
[1752689729762,0.68509216,119390.0,119380.0,0.61137878]
[1752689730062,0.68485216,119390.0,119380.0,0.96476019]
[1752689730252,0.02081216,119390.0,119380.0,0.96476019]
[1752689730456,0.68465216,119390.0,119380.0,0.91956913]
[1752689730660,0.50908216,119390.0,119380.0,1.39734654]
[1752689730852,0.38978933,119410.0,119400.0,0.1674125]
[1752689731052,1.05358933,119410.0,119400.0,0.56580525]
[1752689731258,1.05358933,119410.0,119400.0,0.52079391]
[1752689731453,1.05358933,119410.0,119400.0,0.56580108]
[1752689731663,1.22098773,119410.0,119400.0,0.52079391]
[1752689732164,1.22583773,119410.0,119400.0,0.1674125]
[1752689732364,1.22583773,119410.0,119400.0,0.52079391]
[1752689732968,0.34084933,119410.0,119400.0,0.93828991]
[1752689733164,0.34084933,119410.0,119400.0,0.68828991]
[1752689733165,0.50824773,119410.0,119400.0,0.68828991]
[1752689733365,1.00432933,119410.0,119400.0,0.8795085]
[1752689733566,1.00732933,119410.0,119400.0,1.29290504]
[1752689733860,0.34384933,119410.0,119400.0,1.64628645]
[1752689734067,0.05379,119430.0,119420.0,0.1673844]
[1752689734261,0.71715,119430.0,119420.0,0.55076432]
[1752689734460,0.8845204,119430.0,119420.0,0.55076432]
[1752689735167,0.71715,119430.0,119420.0,0.59676209]
[1752689735367,0.9190804,119430.0,119420.0,0.59676209]
[1752689735562,0.9190804,119430.0,119420.0,0.56676358]
[1752689736067,1.27246181,119430.0,119420.0,0.21338217]
[1752689736667,0.9190804,119430.0,119420.0,0.21338217]
[1752689737063,0.75171,119430.0,119420.0,0.56676358]
[1752689737467,0.75171,119430.0,119420.0,0.59673874]
[1752689737673,0.75171,119430.0,119420.0,0.60493462]
[1752689737674,0.08835,119430.0,119420.0,0.60493462]
[1752689737967,0.9186804,119430.0,119420.0,0.60493462]
[1752689739462,0.9186804,119430.0,119420.0,0.25155321]
[1752689739665,0.9186804,119430.0,119420.0,0.60493462]
[1752689742263,0.75131,119430.0,119420.0,0.60493462]
[1752689742459,0.75051,119430.0,119420.0,0.60493462]
[1752689742870,0.08835,119430.0,119420.0,0.60493462]
[1752689743065,0.32676878,119450.0,119440.0,0.1673564]
[1752689743264,0.99112878,119450.0,119440.0,0.52073781]
[1752689743464,1.34451019,119450.0,119440.0,0.1673564]
[1752689743659,1.01943878,119450.0,119440.0,0.1673564]
[1752689743870,1.37282019,119450.0,119440.0,0.1673564]
[1752689744470,1.37382019,119450.0,119440.0,0.1673564]
[1752689744862,1.02043878,119450.0,119440.0,0.1673564]
[1752689745068,1.37382019,119450.0,119440.0,0.1673564]
[1752689745363,1.02043878,119450.0,119440.0,0.1673564]
[1752689745565,1.37382019,119450.0,119440.0,0.1673564]
[1752689746361,0.2518264,119440.0,119430.0,0.503997]
[1752689746571,0.60520781,119440.0,119430.0,0.503797]
[1752689746767,0.60520781,119440.0,119420.0,0.28943404]
[1752689746768,0.2518404,119430.0,119420.0,0.28943404]
[1752689746973,1.26666181,119430.0,119420.0,0.24738964]
[1752689747263,0.9132804,119430.0,119420.0,0.20554524]
[1752689747668,1.26666181,119430.0,119420.0,0.19734936]
[1752689747872,0.9132804,119430.0,119420.0,0.19734936]
[1752689748069,0.9132804,119430.0,119420.0,0.1673742]
[1752689748273,1.26666181,119430.0,119420.0,0.19834936]
[1752689748472,1.26666181,119430.0,119420.0,0.1683742]
[1752689749169,0.9132804,119430.0,119420.0,0.19834936]
[1752689749376,0.43785141,119430.0,119420.0,0.1683742]
[1752689749568,0.08447,119430.0,119420.0,0.1683742]
[1752689749970,0.74555,119430.0,119420.0,0.1683742]
[1752689750166,0.9129204,119430.0,119420.0,0.1683742]
[1752689750367,1.26630181,119430.0,119420.0,0.1683742]
[1752689750777,0.9129204,119430.0,119420.0,0.1683742]
[1752689751877,1.26630181,119430.0,119420.0,0.1683742]
[1752689752373,1.26630181,119430.0,119420.0,0.001]
[1752689752579,0.9129204,119430.0,119420.0,0.001]
[1752689752876,1.26630181,119430.0,119420.0,0.001]
[1752689753669,0.9129204,119430.0,119420.0,0.001]
[1752689753874,1.26630181,119430.0,119420.0,0.001]
[1752689754074,0.9129204,119430.0,119420.0,0.001]
[1752689754471,1.26630181,119430.0,119420.0,0.001]
[1752689754676,1.28458931,119430.0,119420.0,0.001]
[1752689754872,1.78458931,119430.0,119420.0,0.001]
[1752689755079,1.76630181,119430.0,119420.0,0.001]
[1752689755273,0.08447,119420.0,119410.0,0.35555441]
[1752689755471,0.60523581,119420.0,119410.0,0.22002564]
[1752689755671,0.60523581,119420.0,119410.0,0.05262774]
[1752689755877,1.26563581,119420.0,119410.0,0.05242774]
[1752689756072,0.9122544,119420.0,119410.0,0.02245258]
[1752689756373,1.26563581,119420.0,119410.0,0.02245258]
[1752689756574,1.26563581,119420.0,119410.0,0.02545258]
[1752689757175,0.9122544,119420.0,119410.0,0.02545258]
[1752689757382,1.26563581,119420.0,119410.0,0.02545258]
[1752689758278,0.60523581,119420.0,119410.0,0.02545258]
[1752689758478,0.60523581,119420.0,119410.0,0.20107851]
[1752689758786,1.26539581,119420.0,119410.0,0.20107851]
[1752689758985,1.26539581,119420.0,119410.0,0.19285098]
[1752689759480,1.26539581,119420.0,119410.0,0.24537133]
[1752689760083,0.74451,119420.0,119410.0,0.56877758]
[1752689760283,0.08447,119420.0,119410.0,0.57037758]
[1752689760480,0.74447,119420.0,119410.0,0.52537981]
[1752689760686,0.70676,119420.0,119410.0,0.52637981]
[1752689760883,0.06956807,119430.0,119420.0,0.1673844]
[1752689761090,0.70672,119430.0,119420.0,0.89518172]
[1752689761393,0.70672,119430.0,119420.0,1.06265372]
[1752689761686,0.04676,119430.0,119420.0,1.06265372]
[1752689761887,0.05128,119430.0,119420.0,1.00263859]
[1752689762487,0.05128,119430.0,119420.0,1.00363859]
[1752689763089,0.05128,119430.0,119420.0,1.06431727]
[1752689764390,0.05128,119430.0,119420.0,1.1396975]
[1752689764588,0.04676,119430.0,119420.0,1.1396975]
[1752689765086,0.66448,119440.0,119420.0,0.9723131]
[1752689765286,0.71124,119440.0,119430.0,0.6441778]
[1752689765589,0.71124,119440.0,119430.0,0.65941072]
[1752689765889,0.71124,119440.0,119430.0,0.24535063]
[1752689766093,0.65996,119440.0,119430.0,0.65941072]
[1752689766694,0.70672,119440.0,119430.0,0.65941072]
[1752689766893,0.71124,119440.0,119430.0,0.65941072]
[1752689768003,0.05128,119440.0,119430.0,0.65941072]
[1752689768503,0.05128,119440.0,119430.0,0.24535063]
[1752689768705,0.05128,119440.0,119430.0,0.65941072]
[1752689769508,0.05128,119440.0,119430.0,0.6441317]
[1752689770608,0.05376,119440.0,119430.0,0.6441317]
[1752689770807,0.05376,119440.0,119430.0,0.9387317]
[1752689771312,0.05128,119440.0,119430.0,0.9387317]
[1752689772911,0.05128,119440.0,119430.0,0.52467161]
[1752689773209,0.05128,119440.0,119430.0,0.9387317]
[1752689773810,0.05132,119440.0,119430.0,0.9387317]
[1752689775007,0.05132,119440.0,119430.0,0.52467161]
[1752689775517,0.05132,119440.0,119430.0,0.9387317]
[1752689776013,0.05132,119440.0,119430.0,0.52467161]
[1752689776216,0.05132,119440.0,119430.0,0.9387317]
[1752689776513,0.05132,119440.0,119430.0,0.52467161]
[1752689776713,0.05132,119440.0,119430.0,0.9387317]
[1752689777612,0.05132,119440.0,119430.0,0.52467161]
[1752689777915,0.05132,119440.0,119430.0,0.9387317]
[1752689779718,0.05132,119440.0,119430.0,0.52467161]
[1752689779918,0.05132,119440.0,119430.0,0.9387317]
[1752689780815,0.05132,119440.0,119430.0,0.52467161]
[1752689781016,0.05132,119440.0,119430.0,0.9387317]
[1752689781615,0.05132,119440.0,119430.0,0.52467161]
[1752689781819,0.08533,119440.0,119430.0,0.9387317]
[1752689782920,0.08533,119440.0,119430.0,0.87795683]
[1752689784314,0.60597162,119440.0,119430.0,0.52367161]
[1752689784521,0.43861522,119440.0,119430.0,0.4635704]
[1752689784721,0.08533,119440.0,119430.0,0.4635704]
[1752689785214,0.08533,119440.0,119430.0,0.52367161]
[1752689785613,0.08533,119440.0,119430.0,0.87695683]
[1752689785819,0.74265,119440.0,119430.0,0.87795683]
[1752689786317,0.74265,119440.0,119430.0,0.52467161]
[1752689786517,0.74265,119440.0,119430.0,0.87795683]
[1752689786718,0.74265,119440.0,119430.0,0.52367161]
[1752689786917,0.74265,119440.0,119430.0,0.87695683]
[1752689787520,0.74265,119440.0,119430.0,0.87795683]
[1752689787720,0.70864,119440.0,119430.0,0.81785562]
[1752689788123,0.05132,119440.0,119430.0,0.81785562]
[1752689788421,0.05132,119440.0,119430.0,0.89323585]
[1752689789021,0.05132,119440.0,119430.0,0.81785562]
[1752689789318,0.05132,119440.0,119430.0,0.53995063]
[1752689789525,0.05132,119440.0,119430.0,0.87806415]
[1752689789823,0.05132,119440.0,119430.0,0.52477893]
[1752689790018,0.06772,119440.0,119430.0,0.87806415]
[1752689790223,0.08533,119440.0,119430.0,0.87806415]
[1752689791322,0.07005,119440.0,119430.0,0.87806415]
[1752689791517,0.00489,119450.0,119440.0,0.2210266]
[1752689791726,4e-05,119450.0,119440.0,1.34066506]
[1752689792121,0.00489,119450.0,119440.0,1.34066506]
[1752689792321,0.03405,119460.0,119450.0,0.1673426]
[1752689792632,4e-05,119460.0,119450.0,0.60512782]
[1752689792925,4e-05,119460.0,119450.0,0.68050805]
[1752689793727,4e-05,119460.0,119450.0,0.60512782]
[1752689794131,4e-05,119460.0,119450.0,0.68050805]
[1752689794332,8e-05,119460.0,119450.0,0.68050805]
[1752689794629,8e-05,119460.0,119450.0,0.60512782]
[1752689795529,8e-05,119460.0,119450.0,1.26152782]
[1752689797328,8e-05,119460.0,119450.0,1.55612782]
[1752689798432,8e-05,119460.0,119450.0,1.61627353]
[1752689798828,0.04678,119460.0,119450.0,1.61627353]
[1752689799430,0.04678,119460.0,119450.0,1.55612782]
[1752689799832,0.04678,119460.0,119450.0,1.2028426]
[1752689800032,0.04678,119460.0,119450.0,1.55612782]
[1752689800727,8e-05,119460.0,119450.0,1.55612782]
[1752689801632,8e-05,119460.0,119450.0,1.61624732]
[1752689801832,8e-05,119460.0,119450.0,1.55612782]
[1752689803027,8e-05,119460.0,119450.0,1.61624138]
[1752689803234,8e-05,119460.0,119450.0,1.55612782]
[1752689809040,8e-05,119460.0,119450.0,1.61622858]
[1752689809640,8e-05,119460.0,119450.0,1.55612782]
[1752689811442,8e-05,119460.0,119450.0,1.55436782]
[1752689811641,0.02463,119460.0,119450.0,0.89972782]
[1752689811840,0.05387,119460.0,119450.0,1.55432782]
[1752689812040,0.04933,119460.0,119450.0,1.55432782]
[1752689813245,0.04933,119460.0,119450.0,0.89972782]
[1752689813448,0.60880382,119460.0,119450.0,0.60654975]
[1752689813643,0.08819,119460.0,119450.0,0.5189826]
[1752689813952,0.08819,119460.0,119450.0,0.5466326]
[1752689814253,0.08819,119460.0,119450.0,0.89991782]
[1752689815047,0.08819,119460.0,119450.0,0.60531782]
[1752689815540,0.08819,119460.0,119450.0,0.66542497]
[1752689815953,0.08819,119460.0,119450.0,1.81213975]
[1752689816246,0.08819,119460.0,119450.0,2.16542497]
[1752689817949,0.08819,119460.0,119450.0,2.10531782]
[1752689819047,0.08819,119460.0,119450.0,1.7520326]
[1752689819350,0.08819,119460.0,119450.0,2.10531782]
[1752689819551,0.08819,119460.0,119450.0,2.18069805]
[1752689820350,0.08819,119460.0,119450.0,1.82741283]
[1752689820550,0.08819,119460.0,119450.0,2.18069805]
[1752689821046,0.08819,119460.0,119450.0,2.47529805]
[1752689822052,0.08819,119460.0,119450.0,2.12201283]
[1752689822252,0.08819,119460.0,119450.0,2.47529805]
[1752689822550,0.74175,119460.0,119450.0,2.47529805]
[1752689824951,0.74175,119460.0,119450.0,2.12201283]
[1752689825149,1.26236382,119460.0,119450.0,2.07077283]
[1752689825353,1.26236382,119460.0,119450.0,2.0221836]
[1752689825645,1.26236382,119460.0,119450.0,1.9619426]
[1752689825846,1.26236382,119460.0,119450.0,1.6673426]
[1752689828253,0.9090786,119460.0,119450.0,1.6673426]
[1752689828452,1.26236382,119460.0,119450.0,1.6673426]
[1752689831550,0.9090786,119460.0,119450.0,1.6673426]
[1752689831753,1.26236382,119460.0,119450.0,1.6673426]
[1752689832753,0.9090786,119460.0,119450.0,1.6673426]
[1752689833053,1.26236382,119460.0,119450.0,1.6673426]
[1752689833251,0.9090786,119460.0,119450.0,1.6673426]
[1752689833651,1.26236382,119460.0,119450.0,1.6673426]
[1752689833953,0.9090786,119460.0,119450.0,1.6673426]
[1752689834351,0.9090786,119460.0,119450.0,1.71246843]
[1752689835749,0.08819,119460.0,119450.0,2.11251365]
[1752689836057,0.65216,119460.0,119450.0,2.07206782]
[1752689836256,8e-05,119460.0,119450.0,2.07206782]
[1752689836448,0.65216,119460.0,119450.0,2.07206782]
[1752689837455,8e-05,119460.0,119450.0,2.07206782]
[1752689837655,8e-05,119460.0,119450.0,2.13230882]
[1752689837858,8e-05,119460.0,119450.0,1.7790236]
[1752689838056,8e-05,119460.0,119450.0,2.13230882]
[1752689839153,8e-05,119460.0,119450.0,1.7790236]
[1752689839551,8e-05,119460.0,119450.0,2.07206782]
[1752689839552,0.04843,119460.0,119450.0,2.07206782]
[1752689840156,0.04843,119460.0,119450.0,1.7187826]
[1752689840661,0.04843,119460.0,119450.0,2.07206782]
[1752689841351,8e-05,119460.0,119450.0,2.07206782]
[1752689843854,0.04843,119460.0,119450.0,2.07206782]
[1752689844255,0.02404,119460.0,119450.0,2.07206782]
[1752689844460,8e-05,119460.0,119450.0,2.07206782]
[1752689844662,8e-05,119460.0,119450.0,2.36666782]
[1752689845059,0.04843,119460.0,119450.0,2.42690882]
[1752689845760,0.04843,119460.0,119450.0,2.0736236]
[1752689845969,0.04843,119460.0,119450.0,2.42690882]
[1752689848373,8e-05,119460.0,119450.0,2.0736236]
[1752689848576,8e-05,119460.0,119450.0,2.42690882]
[1752689849680,8e-05,119460.0,119450.0,2.36666782]
[1752689849875,0.04843,119460.0,119450.0,2.0133826]
[1752689850071,0.04843,119460.0,119450.0,2.36666782]
[1752689850273,0.08577,119460.0,119450.0,2.36666782]
[1752689850472,0.06964,119460.0,119450.0,2.0133826]
[1752689850673,0.06964,119460.0,119450.0,2.36666782]
[1752689851076,0.04843,119460.0,119450.0,2.36666782]
[1752689851678,0.04843,119460.0,119450.0,2.42685113]
[1752689855571,0.06477,119460.0,119450.0,2.42685113]
[1752689855778,0.08819,119460.0,119450.0,2.07356591]
[1752689856081,0.60880402,119460.0,119450.0,2.07356591]
[1752689856284,1.25868402,119460.0,119450.0,2.02212591]
[1752689856478,1.75868402,119460.0,119450.0,1.72752591]
[1752689856689,1.75868402,119460.0,119450.0,1.56018331]
[1752689856884,2.19465465,119460.0,119450.0,1.5]
[1752689857083,0.2554529,119450.0,119440.0,0.0770811]
[1752689857285,0.77617812,119450.0,119440.0,0.01689779]
[1752689857482,0.77617812,119450.0,119440.0,1.51669779]
[1752689857683,0.60873812,119450.0,119440.0,1.68405469]
[1752689858192,0.60873812,119450.0,119440.0,1.744238]
[1752689858775,0.2554529,119450.0,119440.0,1.744238]
[1752689858979,0.60873812,119450.0,119440.0,1.744238]
[1752689859586,0.61073812,119450.0,119440.0,1.744238]
[1752689859787,1.26037812,119450.0,119440.0,1.68405469]
[1752689860480,0.2574529,119450.0,119440.0,1.68405469]
[1752689860884,1.26013812,119450.0,119440.0,1.68405469]
[1752689861386,1.26013812,119450.0,119440.0,1.71413371]
[1752689862587,1.26013812,119450.0,119440.0,1.54677681]
[1752689862984,0.7554669,119440.0,119430.0,0.0002]
[1752689863184,0.2554809,119430.0,119420.0,0.01740078]
[1752689863389,1.25784612,119430.0,119420.0,1.68458568]
[1752689863693,0.9045609,119430.0,119420.0,1.68458568]
[1752689863886,1.25784612,119430.0,119420.0,1.68458568]
[1752689864784,1.25784612,119430.0,119420.0,1.68558568]
[1752689864785,1.32326575,119430.0,119420.0,1.68558568]
[1752689865186,1.32326575,119430.0,119420.0,1.51820078]
[1752689865886,1.32326575,119430.0,119420.0,1.68558568]
[1752689866087,1.32326575,119430.0,119420.0,1.51820078]
[1752689866489,1.32326575,119430.0,119420.0,1.68558568]
[1752689867089,0.96998053,119430.0,119420.0,1.68558568]
[1752689867490,1.32326575,119430.0,119420.0,1.68558568]
[1752689867790,0.96998053,119430.0,119420.0,1.68558568]
[1752689867990,1.32326575,119430.0,119420.0,1.68558568]
[1752689868885,0.96998053,119430.0,119420.0,1.68558568]
[1752689869191,0.96998053,119430.0,119420.0,1.70937568]
[1752689869392,0.96998053,119430.0,119420.0,2.0903109]
[1752689869879,0.96998053,119430.0,119420.0,1.73702568]
[1752689870082,0.96998053,119430.0,119420.0,2.0903109]
[1752689870394,0.15352963,119430.0,119420.0,2.0903109]
[1752689870694,0.73655,119430.0,119420.0,2.0903109]
[1752689872389,0.9039209,119430.0,119420.0,2.0903109]
[1752689873492,0.73655,119430.0,119420.0,2.0903109]
[1752689873692,0.9039209,119430.0,119420.0,1.73702568]
[1752689873893,0.9039209,119430.0,119420.0,2.0903109]
[1752689874692,0.96926545,119430.0,119420.0,2.0903109]
[1752689875391,0.69635,119430.0,119420.0,2.0903109]
[1752689875582,0.04835,119430.0,119420.0,2.0903109]
[1752689875790,0.06545355,119440.0,119430.0,0.2539009]
[1752689875990,0.71817355,119440.0,119430.0,0.60718612]
[1752689876594,0.74953355,119440.0,119430.0,0.60718612]
[1752689877992,0.74953355,119440.0,119430.0,0.60818612]
[1752689878896,0.91925035,119440.0,119430.0,0.60818612]
[1752689880203,0.91925035,119440.0,119430.0,0.2549009]
[1752689880497,0.91925035,119440.0,119430.0,0.60818612]
[1752689881494,0.91925035,119440.0,119430.0,0.2081409]
[1752689881695,1.27253557,119440.0,119430.0,0.2034609]
[1752689881999,0.91925035,119440.0,119430.0,0.2034609]
[1752689882390,0.91925035,119440.0,119430.0,0.2081409]
[1752689884002,1.27253557,119440.0,119430.0,0.001]
[1752689884195,1.27253557,119440.0,119430.0,0.1683708]
[1752689885000,1.27253557,119440.0,119430.0,0.1683709]
[1752689885403,0.91925035,119440.0,119430.0,0.1683709]
[1752689885595,1.27253557,119440.0,119430.0,0.1683709]
[1752689886495,0.91925035,119440.0,119430.0,0.55674612]
[1752689886696,0.91801045,119440.0,119430.0,0.60173376]
[1752689887804,0.91801045,119440.0,119430.0,0.24844854]
[1752689888005,0.91801045,119440.0,119430.0,0.60641376]
[1752689888198,0.91801045,119440.0,119430.0,0.65317376]
[1752689888804,0.91801045,119440.0,119430.0,0.60641376]
[1752689889103,0.91801045,119440.0,119430.0,0.60173376]
[1752689889500,0.91801045,119440.0,119430.0,0.55674612]
[1752689889805,0.91801045,119440.0,119430.0,0.2034609]
[1752689890003,1.27129567,119440.0,119430.0,0.2034609]
[1752689891206,0.91801045,119440.0,119430.0,0.2034609]
[1752689892402,1.27129567,119440.0,119430.0,0.2034609]
[1752689893004,0.91801045,119440.0,119430.0,0.23358314]
[1752689894006,0.27149045,119440.0,119430.0,0.23358314]
[1752689894208,0.91725045,119440.0,119430.0,0.23847314]
[1752689894712,0.91725045,119440.0,119430.0,0.23358314]
[1752689895403,0.91725045,119440.0,119430.0,0.19849314]
[1752689895600,1.27053567,119440.0,119430.0,0.19849314]
[1752689895800,1.27053567,119440.0,119430.0,0.21335854]
[1752689899006,1.27053567,119440.0,119430.0,0.04598764]
[1752689899406,0.7531009,119430.0,119420.0,0.0002]
[1752689899607,1.10638612,119430.0,119420.0,0.0002]
[1752689899807,0.2483749,119420.0,119410.0,0.2585213]
[1752689900008,1.25128012,119420.0,119410.0,0.2736613]
[1752689900302,1.25128012,119420.0,119410.0,0.2734613]
[1752689900509,1.25128012,119420.0,119410.0,1.7734613]
[1752689901103,1.25128012,119420.0,119410.0,0.00234]
[1752689901312,1.25128012,119420.0,119410.0,0.001]
[1752689901500,1.2700167,119420.0,119410.0,0.001]
[1752689901706,1.2700167,119420.0,119410.0,0.03112704]
[1752689901906,1.78618886,119420.0,119410.0,0.001]
[1752689902105,1.78622886,119420.0,119410.0,0.001]
[1752689903108,0.2011589,119410.0,119400.0,1.7094639]
[1752689903413,0.2531289,119410.0,119400.0,1.7141539]
[1752689904016,0.2531289,119410.0,119400.0,2.06743912]
[1752689904217,0.8976889,119410.0,119400.0,2.12262871]
[1752689905116,0.8977289,119410.0,119400.0,2.12262871]
[1752689905617,0.8977289,119410.0,119400.0,1.76934349]
[1752689905811,0.8977289,119410.0,119400.0,2.12262871]
[1752689907321,0.72997,119410.0,119400.0,2.12262871]
[1752689907521,0.72523,119410.0,119400.0,2.12262871]
[1752689908213,0.04727,119410.0,119400.0,2.47591393]
[1752689908412,0.64396,119410.0,119400.0,2.47591393]
[1752689908818,0.64396,119410.0,119400.0,1.76934349]
[1752689909018,0.64396,119410.0,119400.0,2.12262871]
[1752689909618,0.8738989,119410.0,119400.0,2.12262871]
[1752689909826,0.8899689,119410.0,119400.0,2.12262871]
[1752689910126,0.8899689,119410.0,119400.0,2.12462871]
[1752689910521,0.8970889,119410.0,119400.0,2.07791871]
[1752689910920,0.8970889,119410.0,119400.0,2.12462871]
[1752689912127,0.8970889,119410.0,119400.0,2.07791871]
[1752689912328,0.8970889,119410.0,119400.0,1.72463349]
[1752689913326,1.25037412,119410.0,119400.0,1.50689]
[1752689913528,1.75037412,119410.0,119400.0,1.502]
[1752689914231,1.75037412,119410.0,119400.0,0.002]
[1752689914723,0.2484029,119400.0,119390.0,1.72887929]
[1752689914924,0.60642812,119400.0,119390.0,1.73356929]
[1752689915129,0.2531429,119400.0,119390.0,1.73356929]
[1752689915428,0.2531429,119400.0,119390.0,2.08685451]
[1752689915624,0.08573,119400.0,119390.0,2.08685451]
[1752689915826,0.69031,119400.0,119390.0,2.19374782]
[1752689916229,0.69031,119400.0,119390.0,2.14215209]
[1752689916426,0.69031,119400.0,119390.0,2.14415209]
[1752689917329,0.72169,119400.0,119390.0,2.14415209]
[1752689917531,0.72407,119400.0,119390.0,2.14415209]
[1752689918130,0.7930067,119410.0,119400.0,0.1978229]
[1752689918434,0.8959689,119410.0,119400.0,0.60504812]
[1752689919029,0.8959689,119410.0,119400.0,0.2050529]
[1752689919528,0.8959689,119410.0,119400.0,0.25015922]
[1752689920933,0.8960089,119410.0,119400.0,0.08274632]
[1752689921132,1.24929412,119410.0,119400.0,0.25015922]
[1752689921632,0.8960089,119410.0,119400.0,0.25015922]
[1752689923127,0.8960089,119410.0,119400.0,0.2050529]
[1752689923329,0.8960089,119410.0,119400.0,0.60344444]
[1752689923527,0.8960089,119410.0,119400.0,0.65015444]